Cogmind - Beta 14 @@@ ROGUE MODE // 2025.03.21 @ 13:38:57 Player: Brananarchy Result: Destroyed by D-53 Grenadier with Mini Grenade Launcher Performance ------------- Evolutions (1) 500 Regions Visited (3) 600 Robots Destroyed (22) 110 Value Destroyed (578) 578 Prototype IDs (0) 0 Alien Tech Used (0) 0 Bonus (0) 0 TOTAL SCORE: 1788 Bonus ------- None Cogmind --------- Core Integrity 0/400 Matter 239/300 Energy 85/100 System Corruption 3% Temperature Cool (0) Movement Core (50) Location -9/Mines Parts ------- > --- POWER (1) -------- (None) > --- PROPULSION (2) --- (None) > --- UTILITY (3) ------ Targeting Computer > --- WEAPON (3) ------- Heavy Hammer > --- INVENTORY (5) ---- Light Ion Engine Peak State ------------ > --- POWER ------------ Improved Ion Engine > --- PROPULSION ------- Armored Wheel Armored Wheel > --- UTILITY ---------- Structural Scanner Targeting Computer Light Armor Plating > --- WEAPON ----------- EM Pulse Gun Beam Cannon Heavy Assault Rifle > --- INVENTORY -------- Ion Engine Light Ion Engine Assault Rifle Heavy Hammer [Rating: 13] Favorites ----------- Power Ion Engine Engine Ion Engine Propulsion Wheel Wheel Wheel Utility Targeting Computer Device Heat Sink Processor Targeting Computer Protection Light Armor Plating Weapon Beam Cannon Energy Gun EM Pulse Gun Energy Cannon Beam Cannon Ballistic Gun Assault Rifle Launcher Grenade Launcher Impact Weapon Heavy Hammer Build | -11 -10 -9 -9 ------- Run | Yrd Mat Mat Min Slots Evolved 2 | . . 2 . Power . | . . . . Propulsion . | . . . . Utility 1 | . . 1 . Weapon 1 | . . 1 . Parts Attached 33 | 6 15 7 5 Power 6 | 2 2 1 1 Engine 6 | 2 2 1 1 Core . | . . . . Reactor . | . . . . Propulsion 8 | 2 4 2 . Treads . | . . . . Leg . | . . . . Wheel 8 | 2 4 2 . Hover . | . . . . Flight . | . . . . Utility 5 | . 3 2 . Device 3 | . 2 1 . Storage . | . . . . Processor 1 | . 1 . . Hackware . | . . . . Protection 1 | . . 1 . Artifact . | . . . . Weapon 14 | 2 6 2 4 Energy Gun 2 | . 1 1 . Energy Cannon 4 | . 3 1 . Ballistic Gun 5 | 2 . . 3 Ballistic Cannon . | . . . . Launcher 2 | . 2 . . Special Weapon . | . . . . Impact Weapon 1 | . . . 1 Slashing Weapon . | . . . . Piercing Weapon . | . . . . Special Melee Weapon . | . . . . Unidentified Prototypes . | . . . . Parts Lost 12 | . . . 12 Power 2 | . . . 2 Propulsion 2 | . . . 2 Utility 2 | . . . 2 Weapon 6 | . . . 6 Highest Loss Streak 6 | . . . 6 To Critical Strikes . | . . . . Average Slot Usage (%) 91 | . 93 98 80 Engine 11 | . 13 11 9 Wheel 23 | . 27 21 21 Device 12 | . 15 16 3 Processor 9 | . 8 11 11 Protection 2 | . . 5 4 Energy Gun 4 | . . 10 3 Energy Cannon 10 | . 11 10 10 Ballistic Gun 4 | . 2 . 12 Launcher 9 | . 12 11 3 Peak Build Rating 13 | 5 7 12 13 Average Rating 8 | 3 6 10 10 On Entrance 6 | . 5 7 12 Naked Turns . | . . . . Heaviest Build 19 | 6 13 19 19 Greatest Support 24 | 20 20 24 24 Greatest Overweight (x) 5 | . 1 5 . Average Overweight (x) . | . . . . Largest Inventory Capacity 5 | 5 5 5 5 Average Capacity 5 | 5 5 5 5 Most Carried 5 | 3 5 5 5 Average Carried 3 | 1 4 4 3 Final Capacity 5 | 5 5 5 5 Final Carried 5 | 1 5 5 1 Class Distribution -------------------- 52% | Mutant 35% | Bomber 12% | Gunner Dominant Class ---------------- Mutant | -10/Materials Bomber | -9/Materials Gunner | -9/Mines Resources | -11 -10 -9 -9 ----------- Run | Yrd Mat Mat Min Matter Collected 694 | 264 67 90 273 Remotely . | . . . . Salvage Created 615 | 47 139 217 212 Parts 32 | 2 7 14 9 Haulers Intercepted . | . . . . Recyclers Shooed 1 | . . . 1 Parts Field Recycled . | . . . . Retrieved Matter . | . . . . Parts Self-Destructed . | . . . . Prevented . | . . . . Kills | -11 -10 -9 -9 ------- Run | Yrd Mat Mat Min Combat Hostiles Destroyed 16 | 1 3 5 7 Guns 7 | 1 . . 6 Cannons 3 | . . 2 1 AOE 6 | . 3 3 . Classes Destroyed 7 | 1 2 2 2 Worker 2 | . . 2 . Recycler 1 | . 1 . . Watcher 3 | . 2 1 . Swarmer 3 | . . . 3 Grunt 10 | 1 3 3 3 Brawler 1 | . . . 1 Sentry 2 | . . 2 . Best Kill Streak 6 | 1 5 6 4 Combat Bots Only 4 | 1 3 4 4 Max Kills in Single Turn 2 | 1 2 2 1 Gunslinging . | . . . . Exploded 2 | . 2 1 . Melee . | . . . . Uniques/NPCs Destroyed . | . . . . Combat | -11 -10 -9 -9 -------- Run | Yrd Mat Mat Min Hostile Shots Fired 102 | 1 7 19 75 Missed 29 | . 3 8 18 Damage Taken 1306 | 10 50 164 1082 Core 415 | . . 15 400 Absorbed by Shields . | . . . . Regen/Repaired (Parts) 86 | . 25 61 . Core Remaining (%) 100 | 100 100 . . Volleys Fired 56 | 1 12 16 27 Largest 3 | 2 1 2 3 Hottest 123 | 40 60 100 123 Shots Fired 107 | 2 12 28 65 Gun 60 | 2 . 12 46 Cannon 33 | . 3 12 18 Launcher 14 | . 9 4 1 Special . | . . . . Kinetic 43 | 2 . . 41 Thermal 33 | . 3 12 18 Explosive 14 | . 9 4 1 Electromagnetic 17 | . . 12 5 Robot Hit Streak 14 | 2 2 14 6 Robot Miss Streak 6 | . 2 2 6 Penetration Max . | . . . . Secondary Targets . | . . . . Shots Hit Robots 62 | 2 3 21 36 Core Hits 43 | 2 15 14 12 Critical Kills . | . . . . Critical Parts Destroyed . | . . . . Critical Strikes . | . . . . Melee Attacks . | . . . . Impact . | . . . . Slashing . | . . . . Piercing . | . . . . Sneak Attacks . | . . . . Combat Hostiles . | . . . . Follow-up Attacks . | . . . . Damage Inflicted 1708 | 19 400 629 660 Guns 478 | 19 . 101 358 Cannons 397 | . 17 191 189 Explosions 809 | . 383 337 89 Melee . | . . . . Ramming 24 | . . . 24 Kinetic 323 | 19 . . 304 Thermal 424 | . 17 191 216 Explosive 782 | . 383 337 62 Electromagnetic 155 | . . 101 54 Impact . | . . . . Slashing . | . . . . Piercing . | . . . . Highest Corruption 3 | . . . 3 Average Corruption 3 | . . . 3 Corruption Purged . | . . . . Corruption Blocked . | . . . . Effects 3 | . . . 3 Message Errors 1 | . . . 1 Matter Fused 2 | . . . 2 Overload Shots . | . . . . Overflow Damage 17 | . 8 . 9 Projectiles . | . . . . Explosions 17 | . 8 . 9 Melee . | . . . . Knockbacks 1 | . . . 1 Impact 1 | . . . 1 Kinetic . | . . . . Secondary . | . . . . Self-Inflicted Damage 44 | . 2 . 42 Shots 2 | . 1 . 1 Rammed 4 | . . . 4 Targets Rammed 4 | . . . 4 Kicked . | . . . . Crushed . | . . . . Highest Temperature 483 | 6 22 288 483 Average Temperature 150 | 6 8 91 197 Received Heat Transfer 309 | 6 45 66 192 Effects 5 | . . . 5 Interference 3 | . . . 3 Matter Decay 2 | . . . 2 Siege Activations . | . . . . Robots Corrupted . | . . . . Combat Hostiles . | . . . . Parts Fried . | . . . . Impact Corruptions . | . . . . Robots Melted . | . . . . Combat Hostiles . | . . . . Parts Melted 1 | . . . 1 Heat Transferred 901 | . 37 407 457 Parts Sabotaged . | . . . . Parts Stolen . | . . . . Parts Stripped . | . . . . Power Chain Reactions 1 | . . . 1 Alert | -11 -10 -9 -9 ------- Run | Yrd Mat Mat Min Peak Influence 203 | 20 162 203 190 Initial 78 | . 13 . 78 Average 90 | 3 112 59 110 Maximum Alert Level 1 | . . 1 . Low Security (%) 96 | 100 100 87 100 Level 1 3 | . . 12 . Level 2 . | . . . . Level 3 . | . . . . Level 4 . | . . . . Level 5 . | . . . . High Security . | . . . . Max Security . | . . . . Squads Dispatched 2 | . . 1 1 Investigation . | . . . . Extermination . | . . . . Reinforcement 2 | . . 1 1 Assault . | . . . . Garrison . | . . . . Intercept . | . . . . Searches Triggered . | . . . . Construction Impeded 1 | . . . 1 Haulers Reinforced . | . . . . Active Scanning Responses . | . . . . Cargo Convoy Interrupts . | . . . . Stealth | -11 -10 -9 -9 --------- Run | Yrd Mat Mat Min Distress Signals 3 | . 1 . 2 Communications Jammed . | . . . . Distress Signals . | . . . . Times Spotted 38 | 1 6 6 25 Peak Tracking Total 10 | 1 3 3 10 Tactical Retreats . | . . . . Traps | -11 -10 -9 -9 ------- Run | Yrd Mat Mat Min Traps Triggered 4 | . 4 . . Indirectly . | . . . . Trap Hack Attempts . | . . . . Triggered . | . . . . Disarmed . | . . . . Reprogrammed . | . . . . Reused . | . . . . Traps Extracted . | . . . . Installed . | . . . . Triggered . | . . . . Machines | -11 -10 -9 -9 ---------- Run | Yrd Mat Mat Min Machines Disabled . | . . . . Max in Single Turn . | . . . . Machines Repaired . | . . . . Machines Dismantled . | . . . . Machines Sabotaged . | . . . . Overloaded Fab Kills . | . . . . Hacking | -11 -10 -9 -9 --------- Run | Yrd Mat Mat Min Machines Accessed 3 | . 2 1 . Terminals 1 | . 1 . . Fabricators . | . . . . Repair Stations 2 | . 1 1 . Recycling Units . | . . . . Scanalyzers . | . . . . Garrison Access . | . . . . Total Hacks 7 | . 5 2 . Successful 6 | . 4 2 . Failed 1 | . 1 . . Catastrophic . | . . . . Database Lockouts . | . . . . Manual . | . . . . Terminals 3 | . 3 . . Fabricators . | . . . . Repair Stations 4 | . 2 2 . Recycling Units . | . . . . Scanalyzers . | . . . . Garrison Access . | . . . . Terminal Hacks 2 | . 2 . . Record 1 | . 1 . . Alert Level 1 | . 1 . . Fabricator Hacks . | . . . . Repair Station Hacks 4 | . 2 2 . Scan Component 2 | . 1 1 . Repair 2 | . 1 1 . Recycling Unit Hacks . | . . . . Scanalyzer . | . . . . Garrison Access Hacks . | . . . . Unauthorized Hacks . | . . . . Terminals . | . . . . Fabricators . | . . . . Repair Stations . | . . . . Recycling Units . | . . . . Scanalyzers . | . . . . Garrison Access . | . . . . Data Cores Recovered . | . . . . Used . | . . . . Hacking Detections 2 | . 1 1 . Full Trace Events . | . . . . Feedback Events . | . . . . Feedback Blocked . | . . . . Robot Schematics Acquired . | . . . . Robots Built . | . . . . Authchips . | . . . . Time . | . . . . Total Robot Build Rating . | . . . . Part Schematics Acquired . | . . . . Parts Built . | . . . . Authchips . | . . . . Time . | . . . . Total Part Build Rating . | . . . . Parts Repaired 2 | . 1 1 . Time 52 | . 26 26 . Parts Recycled . | . . . . Recycled Matter . | . . . . Retrieved Matter . | . . . . Retrieved Components . | . . . . Parts Scanalyzed . | . . . . Part Schematics Acquired . | . . . . Parts Damaged . | . . . . Bothacking | -11 -10 -9 -9 ------------ Run | Yrd Mat Mat Min Used RIF Installer . | . . . . Robots Hacked . | . . . . Non-combat . | . . . . Combat . | . . . . Robot Hacks Applied . | . . . . Relay Couplers Released . | . . . . Fabnet Peak Effective % . | . . . . Robots Rewired . | . . . . Allies Hacked . | . . . . Hacks Repelled . | . . . . Allies | -11 -10 -9 -9 -------- Run | Yrd Mat Mat Min Total Allies . | . . . . Largest Group . | . . . . Highest-Rated Group . | . . . . Highest-Rated Ally . | . . . . Total Orders . | . . . . Ally Attacks . | . . . . Total Damage . | . . . . Kills . | . . . . Allies Corrupted . | . . . . Allies Melted . | . . . . Intel | -11 -10 -9 -9 ------- Run | Yrd Mat Mat Min Robot Analysis Total . | . . . . Derelict Logs Recovered . | . . . . Drone Launches . | . . . . Drone Recoveries . | . . . . Exploration | -11 -10 -9 -9 ------------- Run | Yrd Mat Mat Min Turns Passed 1090 | 62 436 318 274 Spaces Moved 974 | 59 449 260 206 Core 19 | 17 . 2 . Treads . | . . . . Legs . | . . . . Wheels 955 | 42 449 258 206 Hover . | . . . . Flight . | . . . . Fastest Speed 50 | 50 80 80 90 Average Speed 83 | 71 80 88 90 Slowest Speed 300 | 80 95 300 90 Overloaded Moves . | . . . . Propulsion Burnouts . | . . . . Robots Hopped . | . . . . Cave-ins Triggered . | . . . . Exploration Rate (%) 34 | 8 60 26 44 Regions Visited 3 Branch Regions 1 Pre-discovered Areas . | . . . . Known Exits Taken . | . . . . Unknown Exits Taken 3 | 1 1 1 . Scrap Searched . | . . . . Spaces Dug . | . . . . Terrain Destroyed 66 | . 41 13 12 Melee . | . . . . Projectile . | . . . . AOE 66 | . 41 13 12 Terrain Rammed . | . . . . Walls Destroyed . | . . . . Machines Disabled . | . . . . Actions | -11 -10 -9 -9 --------- Run | Yrd Mat Mat Min Total 1151 | 77 511 320 243 Wait 57 | 5 26 26 . Move 971 | 58 448 259 206 Hop . | . . . . Pick Up 18 | 6 5 6 1 Fast Attach 11 | . 9 2 . Attach 21 | 6 6 4 5 Detach 7 | 1 5 1 . Swap 1 | . . 1 . Drop 5 | . . 5 . Fire 56 | 1 12 16 27 Melee . | . . . . Ram 4 | . . . 4 Kick . | . . . . Crush . | . . . . Escape Stasis . | . . . . Rewire . | . . . . Trap . | . . . . Miscellaneous . | . . . . Route ------- -11/Scrapyard -10/Materials (discovered 2 exits: *Mat / [*Min]) -9/Materials (discovered 2 exits: [*Min] / [*Sto]) -9/Mines History --------- Turn | Location | Event 2 | -11/Scrapyard | Met Revision 17 48 | -11/Scrapyard | Discovered new exit (range 8) 63 | -11/Scrapyard | Entered Materials 155 | -10/Materials | Discovered new exit (range 15) 306 | -10/Materials | Build established: Mutant 433 | -10/Materials | Repaired Wheel 452 | -10/Materials | Discovered new exit (range 14) 499 | -10/Materials | Entered another Materials area 499 | -9/Materials | Evolved 2 slots: Utility x1, Weapon x1 537 | -9/Materials | Repaired Beam Cannon 611 | -9/Materials | Discovered new exit (range 13) 758 | -9/Materials | Discovered new exit (range 13) 817 | -9/Materials | Entered Mines 822 | -9/Mines | Build established: Bomber 960 | -9/Mines | Lost 5 parts (1p2u2w) 1040 | -9/Mines | Assembled infested the area 1084 | -9/Mines | Core integrity fell below 50% 1089 | -9/Mines | Core integrity fell below 20% 1091 | -9/Mines | Destroyed by D-53 Grenadier with Mini Grenade Launcher Last Messages --------------- Seismic Survey Station disabled. The unstable cave ceiling collapses. as-03660 destroyed. as-77158 destroyed. as-17546 destroyed. as-55825 destroyed. as-25493 destroyed. Ion Engine destroyed. Arm. Wheel destroyed. The unstable cave ceiling collapses. Beam Cannon destroyed. Arm. Wheel destroyed. The unstable cave ceiling collapses. Assault Rifle destroyed. Lgt. Assault Rifle destroyed. The unstable cave ceiling collapses. Bump into an enemy to attack with the active melee weapon. Even while active, melee weapons do not fire together with ranged weapons in the same volley. Map ----- +----------------------------------------------------+ | ???????????????????????????????????????????? | | ???????????????????????????????????????????? | | ???????????????????????????????????????????? | | ???????????????????????????????????????????? | | ???????????????????????????????????????????? | | ???????????????????????????????????????????? | | ???????????????????????????????????????????? | | ???????????????????????????????????????????? | | ????????????????????????????#??????????????? | | ???????????????????????????? #?????????????? | | ???????????????????? ????? ##???????????? | | ???????????????????? ?????? #???????????? | | ??????????????????## ?????? #???????????? | | ??????????????????# ?????? #???????????? | | ??????????????????# ?????? #???????????? | | ?????????????????## ######?# #???????????? | | ?????????????????# % # ###*#### #??? | | ?????????????????? % # = #?? | | ????????????#?##??# # % ##=### #?? | | ????????????# # ?# ?# #????????#??? | | ??????????## ## # # ### #???????????? | | ?????#### # ## #####???????? | | ?????# # = #???????? | | ?????# dd #### #???????? | | ?????# #??# #???????? | | ?????# @ #??# #???????? | | ????????" #??# #???????? | | ????????? " #??# #???????? | | ??????????" """ ###?# #???????? | | ??????? # ### #???????? | | ????????""" """ """ ###### ##??????? | | ?????????"" """ """ #??## #??????? | | ??????????" """ """ #?## #??????? | | ???????????? #?# #??????? | | ????????????###########?### ### #??????? | | ??????????????############# #?## ##??????? | | ??????????????# #??####???????? | | ??####????????# ##############?????????????? | | ?############## #??????????????????????????? | | ?# #??????????????????????????? | | ?# #############??????????????????????????? | | ## ##???########??????????????????????????? | | ## ##???## ####?????????????????????????? | | ## ##???## "##?????????????????????????? | | ## ###?### ##?????????????????????????? | | ####### ##?????????????????????????? | | ##### "##?????????????????????????? | | """ ### "##?????????????????????????? | | """ ### ##??????????????????????????? | | """ #### % ##??????????????????????????? | +----------------------------------------------------+ Best States ------------- Heat Dissipation 38 Energy Generation 12 Energy Capacity 265 Matter Stores 300 Matter Capacity 300 Sight Range 16 Terrain Scan Density 10 Armor Coverage 150 Evasion (%) 50 Targeting Accuracy 5 Item Schematics ----------------- None Robot Schematics ------------------ None Fabricated ------------ Nothing Alien Tech Used ----------------- None Achievements -------------- None Challenges ------------ None Game ------ Seed TerrainLatentCharge Manual? 0 Play Time 00:35:14 Cumulative 0.5 hours Start 2025.03.21 @ 13:02:13 End 2025.03.21 @ 13:38:57 Sessions 1 Manual Loads 0 Difficulty Rogue Special Mode None Game No. 1 Rogue 1 Adventurer 0 Explorer 0 Win Type - Total 0 Types 0/0/0/0/0/0/0/0/0 Lore% 0 Gallery% 1 Achievement% 10 Wizard Run 0 Options --------- Layout 1 ASCII 0 Keyboard 0 Movement Mouse Keybinds 0 Fullscreen 1 Font 32/SmallcapsGlow Map View 50x35 Zoom Use 0% Tactical HUD 0 Map Filters NONE Filters NONE Steam 1 RUN: 90e03e98-27db-4c8a-a187-89e0b4e1870e